fUST/lending_fUST_20251129
["ID","MTS","AMOUNT","RATE_DAILY","PERIOD"]
[395041174,1764365449866,-500.0,0.00016712,2]
[395041175,1764365449876,-712.78,0.00016712,2]
[395041176,1764365449885,-500.0,0.00016712,2]
[395041177,1764365449895,-500.0,0.00016712,2]
[395041178,1764365449904,-500.0,0.00016712,2]
[395041179,1764365449914,-500.0,0.00016712,2]
[395041180,1764365449923,-1708.02,0.00016712,2]
[395041181,1764365449932,-1430.24,0.00016712,2]
[395041182,1764365449943,-737.45,0.00016712,2]
[395041183,1764365450011,-348.63596406,0.00016712,2]
[395041184,1764365450022,-500.0,0.00016712,2]
[395041185,1764365450031,-501.4,0.00016712,2]
[395041186,1764365450042,-500.0,0.00016712,2]
[395041187,1764365450054,-500.0,0.00016712,2]
[395041188,1764365450063,-792.68,0.00016712,2]
[395041189,1764365450073,-500.0,0.00016712,2]
[395041190,1764365450082,-215.4485066,0.00016712,2]
[395041191,1764365450093,-500.0,0.00016712,2]
[395041192,1764365450102,-500.0,0.00016712,2]
[395041193,1764365450112,-500.0,0.00016712,2]
[395041194,1764365450124,-500.0,0.00016712,2]
[395041195,1764365450134,-598.68,0.00016712,2]
[395041196,1764365450143,-500.0,0.00016712,2]
[395041197,1764365450152,-532.91,0.00016712,2]
[395041198,1764365450162,-2057.6,0.00016712,2]
[395041199,1764365450171,-500.0,0.00016712,2]
[395041200,1764365450180,-790.83,0.00016712,2]
[395041201,1764365450190,-500.0,0.00016712,2]
[395041202,1764365450200,-443.97,0.00016712,2]
[395041203,1764365450209,-500.0,0.00016712,2]
[395041204,1764365450218,-736.75,0.00016712,2]
[395041205,1764365450227,-500.0,0.00016712,2]
[395041206,1764365450237,-800.55,0.00016712,2]
[395041207,1764365450247,-500.0,0.00016712,2]
[395041208,1764365450256,-679.24,0.00016712,2]
[395041209,1764365450266,-500.0,0.00016712,2]
[395041210,1764365450275,-500.0,0.00016712,2]
[395041211,1764365450284,-2147.25,0.00016712,2]
[395041212,1764365450293,-500.0,0.00016712,2]
[395041213,1764365450302,-500.0,0.00016712,2]
[395041214,1764365450311,-500.0,0.00016712,2]
[395041215,1764365450320,-500.0,0.00016712,2]
[395041216,1764365450330,-581.41,0.00016712,2]
[395041217,1764365450339,-500.0,0.00016712,2]
[395041218,1764365450349,-1214.61,0.00016712,2]
[395041219,1764365450359,-500.0,0.00016712,2]
[395041220,1764365450368,-500.0,0.00016712,2]
[395041221,1764365450378,-623.39,0.00016712,2]
[395041222,1764365450388,-500.0,0.00016712,2]
[395041223,1764365450398,-508.71,0.00016712,2]
[395041224,1764365450407,-730.42,0.00016712,2]
[395041225,1764365450417,-500.0,0.00016712,2]
[395041226,1764365450427,-697.25,0.00016712,2]
[395041227,1764365450436,-2875.93,0.00016712,2]
[395041228,1764365450445,-500.0,0.00016712,2]
[395041229,1764365450454,-500.0,0.00016712,2]
[395041230,1764365450463,-500.0,0.00016712,2]
[395041231,1764365450472,-500.0,0.00016712,2]
[395041232,1764365450481,-508.56,0.00016712,2]
[395041233,1764365450490,-332.16033164,0.00016712,2]
[395041234,1764365450499,-500.0,0.00016712,2]
[395041235,1764365450508,-500.0,0.00016712,2]
[395041236,1764365450517,-500.0,0.00016712,2]
[395041237,1764365450526,-500.0,0.00016712,2]
[395041238,1764365450537,-1318.58,0.00016712,2]
[395041239,1764365450545,-569.39,0.00016712,2]
[395041240,1764365450555,-500.0,0.00016712,2]
[395041241,1764365450565,-500.0,0.00016712,2]
[395041242,1764365450575,-500.0,0.00016712,2]
[395041243,1764365450584,-500.0,0.00016712,2]
[395041244,1764365450594,-500.0,0.00016712,2]
[395041245,1764365450604,-500.0,0.00016712,2]
[395041246,1764365450614,-771.8,0.00016712,2]
[395041247,1764365450623,-957.66,0.00016712,2]
[395041248,1764365450633,-843.53,0.00016712,2]
[395041249,1764365450643,-500.0,0.00016712,2]
[395041250,1764365450652,-500.0,0.00016712,2]
[395041251,1764365450661,-500.0,0.00016712,2]
[395041252,1764365450670,-500.0,0.00016712,2]
[395041253,1764365450679,-821.64,0.00016712,2]
[395041254,1764365450688,-497.20720323,0.00016712,2]
[395041255,1764365450698,-500.0,0.00016712,2]
[395041256,1764365450707,-500.0,0.00016712,2]
[395041257,1764365450716,-669.55,0.00016712,2]
[395041258,1764365450726,-500.0,0.00016712,2]
[395041259,1764365450735,-416.23512123,0.00016712,2]
[395041260,1764365450744,-500.0,0.00016712,2]
[395041261,1764365450753,-500.0,0.00016712,2]
[395041262,1764365450762,-610.78887653,0.00016712,2]
[395041263,1764365450772,-500.0,0.00016712,2]
[395041264,1764365450781,-992.05,0.00016712,2]
[395041265,1764365450791,-664.46,0.00016712,2]
[395041266,1764365450800,-545.9,0.00016712,2]
[395041267,1764365450809,-500.0,0.00016712,2]
[395041268,1764365450818,-500.0,0.00016712,2]
[395041269,1764365450827,-523.65,0.00016712,2]
[395041270,1764365450836,-500.0,0.00016712,2]
[395041271,1764365450846,-500.0,0.00016712,2]
[395041272,1764365450855,-500.0,0.00016712,2]
[395041273,1764365450864,-500.0,0.00016712,2]
[395041274,1764365450873,-500.0,0.00016712,2]
[395041275,1764365450883,-550.64,0.00016712,2]
[395041276,1764365450892,-917.7,0.00016712,2]
[395041277,1764365450901,-500.0,0.00016712,2]
[395041278,1764365450910,-853.64,0.00016712,2]
[395041279,1764365450919,-775.06,0.00016712,2]
[395041280,1764365450928,-973.04,0.00016712,2]
[395041281,1764365450938,-500.0,0.00016712,2]
[395041282,1764365450947,-500.0,0.00016712,2]
[395041283,1764365450955,-500.0,0.00016712,2]
[395041284,1764365450965,-500.0,0.00016712,2]
[395041285,1764365450974,-500.0,0.00016712,2]
[395041286,1764365450982,-1966.75,0.00016712,2]
[395041287,1764365450991,-3432.56,0.00016712,2]
[395041288,1764365451001,-924.64,0.00016712,2]
[395041289,1764365451010,-500.0,0.00016712,2]
[395041290,1764365451019,-1054.26,0.00016712,2]
[395041291,1764365451028,-942.84,0.00016712,2]
[395041292,1764365451038,-500.0,0.00016712,2]
[395041293,1764365451050,-500.0,0.00016712,2]
[395041294,1764365451059,-500.0,0.00016712,2]
[395041295,1764365451068,-1307.6,0.00016712,2]
[395041296,1764365451078,-500.47,0.00016712,2]
[395041297,1764365451087,-500.0,0.00016712,2]
[395041298,1764365451098,-694.51,0.00016712,2]
[395041299,1764365451107,-1664.16,0.00016712,2]
[395041300,1764365451116,-1092.58,0.00016712,2]
[395041301,1764365451126,-582.8578754,0.00016712,2]
[395041302,1764365451135,-1110.23,0.00016712,2]
[395041303,1764365451144,-2118.16,0.00016712,2]
[395041304,1764365451153,-1454.96,0.00016712,2]
[395041305,1764365451162,-1066.38,0.00016712,2]
[395041306,1764365451171,-977.64,0.00016712,2]
[395041307,1764365451180,-2978.99,0.00016712,2]
[395041308,1764365451189,-687.74,0.00016712,2]
[395041309,1764365451198,-500.0,0.00016712,2]
[395041310,1764365451208,-2757.91,0.00016712,2]
[395041311,1764365451218,-500.0,0.00016712,2]
[395041312,1764365451227,-500.0,0.00016712,2]
[395041313,1764365451235,-3327.12,0.00016712,2]
[395041314,1764365451245,-500.0,0.00016712,2]
[395041315,1764365451254,-500.0,0.00016712,2]
[395041316,1764365451263,-722.57,0.00016712,2]
[395041317,1764365451272,-500.0,0.00016712,2]
[395041318,1764365451282,-1801.08,0.00016712,2]
[395041319,1764365451291,-500.0,0.00016712,2]
[395041320,1764365451300,-950.99,0.00016712,2]
[395041321,1764365451310,-1250.01,0.00016712,2]
[395041322,1764365451319,-1769.19,0.00016712,2]
[395041323,1764365451328,-2813.82,0.00016712,2]
[395041324,1764365451337,-524.11580251,0.00016712,2]
[395041325,1764365451347,-555.37,0.00016712,2]
[395041326,1764365451356,-571.14627332,0.00016712,2]
[395041327,1764365451365,-749.0,0.00016712,2]
[395041328,1764365451374,-17742.59,0.00016712,2]
[395041329,1764365451383,-500.0,0.00016712,2]
[395041330,1764365451393,-550.19,0.00016712,2]
[395041331,1764365451402,-500.0,0.00016712,2]
[395041332,1764365451411,-3212.86,0.00016712,2]
[395041333,1764365451420,-3484.16,0.00016712,2]
[395041334,1764365451430,-500.0,0.00016712,2]
[395041335,1764365451439,-500.0,0.00016712,2]
[395041336,1764365451449,-912.52,0.00016712,2]
[395041337,1764365451457,-1320.85,0.00016712,2]
[395041338,1764365451467,-511.39,0.00016712,2]
[395041339,1764365451476,-1256.2,0.00016712,2]
[395041340,1764365451485,-3510.0,0.00016712,2]
[395041341,1764365451494,-500.0,0.00016712,2]
[395041342,1764365451504,-500.0,0.00016712,2]
[395041343,1764365451514,-601.06,0.00016712,2]
[395041344,1764365451524,-500.0,0.00016712,2]
[395041345,1764365451534,-893.72,0.00016712,2]
[395041346,1764365451543,-2295.29,0.00016712,2]
[395041347,1764365451553,-500.0,0.00016712,2]
[395041348,1764365451562,-500.0,0.00016712,2]
[395041349,1764365451570,-4407.65,0.00016712,2]
[395041350,1764365451580,-667.93,0.00016712,2]
[395041351,1764365451589,-1146.96,0.00016712,2]
[395041352,1764365451598,-1077.47,0.00016712,2]
[395041353,1764365451607,-500.0,0.00016712,2]
[395041354,1764365451617,-500.0,0.00016712,2]
[395041355,1764365451626,-500.0,0.00016712,2]
[395041356,1764365451635,-613.61,0.00016712,2]
[395041357,1764365451643,-671.39,0.00016712,2]
[395041358,1764365451653,-500.0,0.00016712,2]
[395041359,1764365451663,-4133.01,0.00016712,2]
[395041360,1764365451672,-500.0,0.00016712,2]
[395041361,1764365451681,-500.0,0.00016712,2]
[395041362,1764365451691,-1009.34,0.00016712,2]
[395041363,1764365451700,-500.0,0.00016712,2]
[395041364,1764365451709,-500.0,0.00016712,2]
[395041365,1764365451718,-1637.72,0.00016712,2]
[395041366,1764365451728,-1190.5,0.00016712,2]
[395041367,1764365451737,-1301.13,0.00016712,2]
[395041368,1764365451746,-500.0,0.00016712,2]
[395041369,1764365451755,-500.0,0.00016712,2]
[395041370,1764365451764,-500.0,0.00016712,2]
[395041371,1764365451773,-1054.57,0.00016712,2]
[395041372,1764365451782,-533.87,0.00016712,2]
[395041373,1764365451791,-500.0,0.00016712,2]
[395041374,1764365451800,-831.46,0.00016712,2]
[395041375,1764365451810,-1259.26,0.00016712,2]
[395041376,1764365451819,-1942.38,0.00016712,2]
[395041377,1764365451828,-657.22,0.00016712,2]
[395041378,1764365451838,-7667.0,0.00016712,2]
[395041379,1764365451848,-3784.27,0.00016712,2]
[395041380,1764365451858,-679.39,0.00016712,2]
[395041381,1764365451867,-500.0,0.00016712,2]
[395041382,1764365451877,-500.0,0.00016712,2]
[395041383,1764365451887,-734.89,0.00016712,2]
[395041384,1764365451896,-500.0,0.00016712,2]
[395041385,1764365451906,-500.0,0.00016712,2]
[395041386,1764365451916,-500.0,0.00016712,2]
[395041387,1764365451926,-605.28,0.00016712,2]
[395041388,1764365451936,-500.0,0.00016712,2]
[395041389,1764365451945,-891.63,0.00016712,2]
[395041390,1764365451956,-500.0,0.00016712,2]
[395041391,1764365451966,-630.02,0.00016712,2]
[395041392,1764365451975,-4247.07,0.00016712,2]
[395041393,1764365451984,-1087.14,0.00016712,2]
[395041394,1764365451994,-972.94,0.00016712,2]
[395041395,1764365452003,-500.0,0.00016712,2]
[395041396,1764365452012,-500.0,0.00016712,2]
[395041397,1764365452022,-500.0,0.00016712,2]
[395041398,1764365452031,-2615.3,0.00016712,2]
[395041399,1764365452040,-664.47,0.00016712,2]
[395041400,1764365452058,-500.0,0.00016712,2]
[395041401,1764365452067,-934.21,0.00016712,2]
[395041402,1764365452077,-229.76109786,0.00016712,2]
[395041403,1764365452087,-2282.37,0.00016712,2]
[395041404,1764365452096,-500.0,0.00016712,2]
[395041405,1764365452106,-1823.86,0.00016712,2]
[395041406,1764365452116,-500.0,0.00016712,2]
[395041407,1764365452126,-3696.29,0.00016712,2]
[395041408,1764365452135,-564.83,0.00016712,2]
[395041409,1764365452148,-1418.96,0.00016712,2]
[395041410,1764365452158,-500.0,0.00016712,2]
[395041411,1764365452167,-500.0,0.00016712,2]
[395041412,1764365452176,-654.94,0.00016712,2]
[395041413,1764365452185,-713.34,0.00016712,2]
[395041414,1764365452194,-2789.84,0.00016712,2]
[395041415,1764365452204,-582.72,0.00016712,2]
[395041416,1764365452213,-1115.76,0.00016712,2]
[395041417,1764365452222,-1417.69,0.00016712,2]
[395041418,1764365452231,-2891.1,0.00016712,2]
[395041419,1764365452240,-10388.81,0.00016712,2]
[395041420,1764365452249,-500.0,0.00016712,2]
[395041421,1764365452258,-3945.5,0.00016712,2]
[395041422,1764365452267,-1025.03,0.00016712,2]
[395041423,1764365452276,-500.0,0.00016712,2]
[395041424,1764365452286,-445.0966209,0.00016712,2]
[395041425,1764365452655,-3383.8833791,0.00016712,2]
[395041426,1764365452665,-500.0,0.00016712,2]
[395041427,1764365452674,-500.0,0.00016712,2]
[395041428,1764365452683,-886.14769519,0.00016712,2]
[395041429,1764365452696,-8439.63230481,0.00016712,2]
[395041430,1764365452707,-500.0,0.00016712,2]
[395041431,1764365452717,-1515.55,0.00016712,2]
[395041432,1764365452727,-500.0,0.00016712,2]
[395041433,1764365452737,-500.0,0.00016712,2]
[395041434,1764365452746,-1895.69,0.00016712,2]
[395041435,1764365452755,-652.78,0.00016712,2]
[395041436,1764365452764,-3177.34,0.00016712,2]
[395041437,1764365452774,-932.15,0.00016712,2]
[395041438,1764365452784,-500.0,0.00016712,2]
[395041439,1764365452793,-500.0,0.00016712,2]
[395041440,1764365452803,-500.0,0.00016712,2]
[395041441,1764365452813,-676.42,0.00016712,2]
[395041442,1764365452822,-500.0,0.00016712,2]
[395041443,1764365452831,-500.0,0.00016712,2]
[395041444,1764365452840,-500.0,0.00016712,2]
[395041445,1764365452850,-500.0,0.00016712,2]
[395041446,1764365452858,-500.0,0.00016712,2]
[395041447,1764365452867,-1090.04,0.00016712,2]
[395041448,1764365452877,-5473.0,0.00016712,2]
[395041449,1764365452886,-503.63,0.00016712,2]
[395041450,1764365452895,-1142.57,0.00016712,2]
[395041451,1764365452904,-500.0,0.00016712,2]
[395041452,1764365452913,-500.0,0.00016712,2]
[395041453,1764365452922,-500.0,0.00016712,2]
[395041454,1764365452932,-4517.61,0.00016712,2]
[395041455,1764365452942,-3336.47,0.00016712,2]
[395041456,1764365452951,-500.0,0.00016712,2]
[395041457,1764365452960,-500.0,0.00016712,2]
[395041458,1764365452969,-500.0,0.00016712,2]
[395041459,1764365452978,-500.0,0.00016712,2]
[395041460,1764365452987,-500.0,0.00016712,2]
[395041461,1764365452997,-500.0,0.00016712,2]
[395041462,1764365453006,-500.0,0.00016712,2]
[395041463,1764365453015,-1160.41,0.00016712,2]
[395041464,1764365453025,-514.14,0.00016712,2]
[395041465,1764365453040,-1674.52,0.00016712,2]
[395041466,1764365453059,-194.9469039,0.00016712,2]
[395041467,1764365453971,-305.0530961,0.00016712,2]
[395041468,1764365453981,-500.0,0.00016712,2]
[395041469,1764365453991,-500.0,0.00016712,2]
[395041470,1764365454000,-500.0,0.00016712,2]
[395041471,1764365454010,-1220.31,0.00016712,2]
[395041472,1764365454019,-3473.61,0.00016712,2]
[395041473,1764365454029,-263.63856552,0.00016712,2]
[395041474,1764365468864,330.49753349,8.996e-05,2]
[395041475,1764365468885,248.56494173,8.996e-05,2]
[395041476,1764365469530,579.06247522,0.00011473,2]
[395041477,1764365470231,579.06247522,0.0001395,2]
[395041478,1764365473461,42.36750783,0.00014959,2]
[395041490,1764366333087,-408.63249217,0.00012892,2]
[395041491,1764366333108,-408.63249217,0.00013022,2]
[395041492,1764366333128,-408.63249217,0.00013154,2]
[395041493,1764366333148,-263.0,0.00013694,2]
[395041494,1764366333168,-1142.948008,0.00013699,2]
[395041495,1764366333191,-61.7971627,0.00013763,2]
[395041496,1764366427415,-150.0,0.00012699,2]
[395041497,1764366427436,-150.0,0.00012827,2]
[395041498,1764366427456,-150.0,0.00012957,2]
[395041499,1764366427481,-177.0,0.00014957,2]
[395041500,1764366427500,-310.27,0.00014967,2]
[395041501,1764366427524,-463.58719705,0.00015068,2]
[395041502,1764366451075,-500.0,0.00014762,2]
[395041503,1764366451097,-339.99900586,0.00014911,2]
[395041504,1764366563115,-160.00099414,0.00014762,2]
[395041505,1764366568092,-160.00099414,0.00014911,2]
[395041506,1764366575645,336.41280295,0.00014918,2]
[395041507,1764366598845,336.41280295,0.00014918,2]
[395041508,1764366608374,371.4079,0.00013699,2]
[395041509,1764366620926,336.41280295,0.00014918,2]
[395041536,1764366632129,-155.65079967,0.00015068,2]
[395041541,1764366632163,-180.76200328,0.00015068,2]
[395041543,1764366632172,-220.39588885,0.00015129,2]
[395041573,1764366637961,-133.19655373,0.00015129,2]
[395041574,1764366637971,-169.8831568,0.00015263,2]
[395041575,1764366637981,-500.0,0.00015967,2]
[395041576,1764366637991,-500.0,0.00015967,2]
[395041577,1764366638001,-231.56874513,0.00016072,2]
[395041578,1764366638010,-53.17878742,0.00016126,2]
[395041579,1764366638073,-612.82121258,0.00016126,2]
[395041580,1764366638084,-300.0,0.00016135,2]
[395041581,1764366638094,-58.24877776,0.00016136,2]
[395041582,1764366638106,-2668.98,0.00016136,2]
[395041596,1764366640411,-794.38564574,0.00016136,2]
[395041616,1764366643283,-2860.61000003,0.00016136,2]
[395041617,1764366643394,-5000.0,0.00016136,2]
[395041653,1764366646297,-12132.34829309,0.00015975,2]
[395041654,1764366646307,-38617.77557647,0.00016136,2]
[395041655,1764366646316,-214.18,0.00016136,2]
[395041656,1764366646324,-1000.0,0.000162,2]
[395041657,1764366646333,-37.46175044,0.000162,2]
[395041658,1764366646413,-962.53824956,0.000162,2]
[395041659,1764366646423,-1000.0,0.000162,2]
[395041660,1764366646432,-1000.0,0.000162,2]
[395041661,1764366646441,-1000.0,0.000162,2]
[395041662,1764366646450,-1000.0,0.000162,2]
[395041663,1764366646460,-186.674,0.00016237,2]
[395041664,1764366646470,-579.06247522,0.00016427,2]
[395041665,1764366646479,-194.72792766,0.00016428,2]
[395041666,1764366646487,-500.0,0.00016437,2]
[395041667,1764366646497,-218.42111299,0.00016437,2]
[395041668,1764366646507,-500.0,0.00016438,2]
[395041669,1764366646516,-503.96786583,0.00016438,2]
[395041670,1764366646525,-504.18294725,0.00016438,2]
[395041671,1764366646534,-500.0,0.00016438,2]
[395041672,1764366646543,-500.0,0.00016438,2]
[395041673,1764366646552,-500.0,0.00016438,2]
[395041674,1764366646561,-505.88992246,0.00016438,2]
[395041675,1764366646570,-226.9976595,0.00016438,2]
[395041676,1764366646579,-500.0,0.00016438,2]
[395041677,1764366646588,-500.0,0.00016438,2]
[395041678,1764366646597,-500.0,0.00016438,2]
[395041679,1764366646606,-500.0,0.00016438,2]
[395041680,1764366646615,-500.0,0.00016438,2]
[395041681,1764366646624,-500.0,0.00016438,2]
[395041682,1764366646634,-500.0,0.00016438,2]
[395041683,1764366646643,-637.12,0.00016438,2]
[395041684,1764366646652,-500.0,0.00016438,2]
[395041685,1764366646662,-500.0,0.00016438,2]
[395041686,1764366646671,-500.0,0.00016438,2]
[395041687,1764366646680,-500.0,0.00016438,2]
[395041688,1764366646690,-500.0,0.00016438,2]
[395041689,1764366646699,-500.0,0.00016438,2]
[395041690,1764366646709,-680.21,0.00016438,2]
[395041691,1764366646719,-500.0,0.00016438,2]
[395041692,1764366646728,-565.91,0.00016438,2]
[395041693,1764366646737,-1311.05,0.00016438,2]
[395041694,1764366646746,-500.0,0.00016438,2]
[395041695,1764366646755,-500.0,0.00016438,2]
[395041696,1764366646765,-500.0,0.00016438,2]
[395041697,1764366646775,-500.0,0.00016438,2]
[395041698,1764366646787,-396.49610092,0.00016438,2]
[395041699,1764366646797,-500.0,0.00016438,2]
[395041700,1764366646806,-543.8,0.00016438,2]
[395041701,1764366646815,-500.0,0.00016438,2]
[395041702,1764366646824,-675.99,0.00016438,2]
[395041703,1764366646834,-500.0,0.00016438,2]
[395041704,1764366646843,-724.93,0.00016438,2]
[395041705,1764366646852,-500.0,0.00016438,2]
[395041706,1764366646861,-733.84,0.00016438,2]
[395041707,1764366646870,-500.0,0.00016438,2]
[395041708,1764366646880,-500.0,0.00016438,2]
[395041709,1764366646889,-500.0,0.00016438,2]
[395041710,1764366646898,-500.0,0.00016438,2]
[395041711,1764366646907,-500.0,0.00016438,2]
[395041712,1764366646916,-500.0,0.00016438,2]
[395041713,1764366646926,-815.42,0.00016438,2]
[395041714,1764366646935,-500.0,0.00016438,2]
[395041715,1764366646944,-500.0,0.00016438,2]
[395041716,1764366646953,-500.0,0.00016438,2]
[395041717,1764366646962,-500.0,0.00016438,2]
[395041718,1764366646971,-500.0,0.00016438,2]
[395041719,1764366646980,-500.0,0.00016438,2]
[395041720,1764366646991,-500.0,0.00016438,2]
[395041721,1764366647000,-500.0,0.00016438,2]
[395041722,1764366647010,-1208.7,0.00016438,2]
[395041723,1764366647019,-500.0,0.00016438,2]
[395041724,1764366647028,-669.55,0.00016438,2]
[395041725,1764366647037,-500.0,0.00016438,2]
[395041726,1764366647047,-877.85,0.00016438,2]
[395041727,1764366647056,-308.6504957,0.00016438,2]
[395041728,1764366647069,-560.91,0.00016438,2]
[395041729,1764366647078,-500.0,0.00016438,2]
[395041730,1764366647087,-500.0,0.00016438,2]
[395041731,1764366647096,-486.97675048,0.00016438,2]
[395041732,1764366647105,-500.0,0.00016438,2]
[395041733,1764366647115,-487.47980968,0.00016438,2]
[395041734,1764366647124,-500.0,0.00016438,2]
[395041735,1764366647133,-500.0,0.00016438,2]
[395041736,1764366647142,-500.0,0.00016438,2]
[395041737,1764366647151,-500.0,0.00016438,2]
[395041738,1764366647161,-753.17,0.00016438,2]
[395041739,1764366647170,-500.0,0.00016438,2]
[395041740,1764366647179,-500.0,0.00016438,2]
[395041741,1764366647188,-500.0,0.00016438,2]
[395041742,1764366647198,-500.0,0.00016438,2]
[395041743,1764366647207,-613.75,0.00016438,2]
[395041744,1764366647216,-500.0,0.00016438,2]
[395041745,1764366647225,-909.38,0.00016438,2]
[395041746,1764366647236,-500.0,0.00016438,2]
[395041747,1764366647245,-500.41,0.00016438,2]
[395041748,1764366647255,-500.0,0.00016438,2]
[395041749,1764366647265,-500.0,0.00016438,2]
[395041750,1764366647275,-841.22,0.00016438,2]
[395041751,1764366647285,-595.09,0.00016438,2]
[395041752,1764366647295,-500.0,0.00016438,2]
[395041753,1764366647305,-500.0,0.00016438,2]
[395041754,1764366647314,-500.0,0.00016438,2]
[395041755,1764366647324,-500.0,0.00016438,2]
[395041756,1764366647333,-847.59,0.00016438,2]
[395041757,1764366647343,-500.0,0.00016438,2]
[395041758,1764366647353,-591.73,0.00016438,2]
[395041759,1764366647363,-500.0,0.00016438,2]
[395041760,1764366647373,-914.85,0.00016438,2]
[395041761,1764366647383,-500.0,0.00016438,2]
[395041762,1764366647393,-500.0,0.00016438,2]
[395041763,1764366647402,-500.0,0.00016438,2]
[395041764,1764366647411,-500.0,0.00016438,2]
[395041765,1764366647420,-1669.83,0.00016438,2]
[395041766,1764366647430,-522.67,0.00016438,2]
[395041767,1764366647439,-500.0,0.00016438,2]
[395041768,1764366647448,-630.43,0.00016438,2]
[395041769,1764366647457,-977.51,0.00016438,2]
[395041770,1764366647466,-500.0,0.00016438,2]
[395041771,1764366647475,-662.36,0.00016438,2]
[395041772,1764366647485,-271.19939466,0.00016438,2]
[395041773,1764366647494,-500.0,0.00016438,2]
[395041774,1764366647504,-500.0,0.00016438,2]
[395041775,1764366647513,-809.71,0.00016438,2]
[395041776,1764366647522,-500.0,0.00016438,2]
[395041777,1764366647532,-500.0,0.00016438,2]
[395041778,1764366647542,-500.0,0.00016438,2]
[395041779,1764366647551,-1329.64,0.00016438,2]
[395041780,1764366647561,-500.0,0.00016438,2]
[395041781,1764366647570,-500.0,0.00016438,2]
[395041782,1764366647580,-500.0,0.00016438,2]
[395041783,1764366647589,-500.0,0.00016438,2]
[395041784,1764366647598,-500.0,0.00016438,2]
[395041785,1764366647607,-500.0,0.00016438,2]
[395041786,1764366647617,-500.0,0.00016438,2]
[395041787,1764366647628,-500.0,0.00016438,2]
[395041788,1764366647637,-586.8,0.00016438,2]
[395041789,1764366647646,-653.38,0.00016438,2]
[395041790,1764366647655,-500.0,0.00016438,2]
[395041791,1764366647664,-819.25,0.00016438,2]
[395041792,1764366647673,-500.0,0.00016438,2]
[395041793,1764366647683,-500.0,0.00016438,2]
[395041794,1764366647692,-1886.14,0.00016438,2]
[395041795,1764366647701,-500.0,0.00016438,2]
[395041796,1764366647710,-1565.69,0.00016438,2]
[395041797,1764366647719,-500.0,0.00016438,2]
[395041798,1764366647728,-500.0,0.00016438,2]
[395041799,1764366647737,-500.0,0.00016438,2]
[395041800,1764366647746,-675.35,0.00016438,2]
[395041801,1764366647755,-500.0,0.00016438,2]
[395041802,1764366647764,-1968.31,0.00016438,2]
[395041803,1764366647773,-500.0,0.00016438,2]
[395041804,1764366647787,-500.0,0.00016438,2]
[395041805,1764366647796,-548.79,0.00016438,2]
[395041806,1764366647805,-500.0,0.00016438,2]
[395041807,1764366647814,-500.0,0.00016438,2]
[395041808,1764366647824,-1113.39,0.00016438,2]
[395041809,1764366647832,-500.0,0.00016438,2]
[395041810,1764366647842,-500.0,0.00016438,2]
[395041811,1764366647851,-423.87995692,0.00016438,2]